[Event "Titled Tuesday Blitz March 07 Late 2023"]
[White "Goltseva, Ekaterina"]
[Black "Romero Ruscalleda, Josep"]
[WhiteFideId "24173770"]
[BlackFideId "2231859"]
[WhiteElo "2200"]
[BlackElo "2183"]
[Result "1-0"]
[Round "07"]
[TimeControl "180+2"]
[Date "2023.03.07"]
[WhiteClock "0:00:28"]
[BlackClock "0:00:30"]

1. e3 {[%clk 0:03:00]}  g6 {[%clk 0:03:00]} 2. c4 {[%clk 0:02:59]}  Bg7 {[%clk 0:03:00]} 3. Nc3 {[%clk 0:02:59]}  d6 {[%clk 0:03:01]} 4. Nf3 {[%clk 0:02:59]}  c5 {[%clk 0:03:00]} 5. d4 {[%clk 0:02:59]}  cxd4 {[%clk 0:03:00]} 6. exd4 {[%clk 0:03:00]}  Nf6 {[%clk 0:02:59]} 7. Be2 {[%clk 0:02:59]}  O-O {[%clk 0:02:59]} 8. O-O {[%clk 0:03:00]}  Nc6 {[%clk 0:02:59]} 9. b3 {[%clk 0:02:56]}  Bf5 {[%clk 0:02:58]} 10. Bb2 {[%clk 0:02:56]}  Ne4 {[%clk 0:02:58]} 11. Re1 {[%clk 0:02:54]}  Nxc3 {[%clk 0:02:55]} 12. Bxc3 {[%clk 0:02:54]}  Rc8 {[%clk 0:02:54]} 13. Rc1 {[%clk 0:02:54]}  Re8 {[%clk 0:02:46]} 14. Qd2 {[%clk 0:02:52]}  e5 {[%clk 0:02:29]} 15. d5 {[%clk 0:02:48]}  Ne7 {[%clk 0:02:25]} 16. b4 {[%clk 0:02:37]}  Bg4 {[%clk 0:02:11]} 17. c5 {[%clk 0:01:21]}  Bxf3 {[%clk 0:01:59]} 18. Bxf3 {[%clk 0:01:05]}  Nf5 {[%clk 0:01:48]} 19. c6 {[%clk 0:01:00]}  Qb6 {[%clk 0:01:41]} 20. a4 {[%clk 0:00:55]}  Nd4 {[%clk 0:01:27]} 21. Bxd4 {[%clk 0:00:54]}  exd4 {[%clk 0:01:26]} 22. b5 {[%clk 0:00:50]}  Kf8 {[%clk 0:01:17]} 23. g3 {[%clk 0:00:49]}  a6 {[%clk 0:01:09]} 24. a5 {[%clk 0:00:42]}  Qxb5 {[%clk 0:01:03]} 25. Rb1 {[%clk 0:00:42]}  Rxe1+ {[%clk 0:00:58]} 26. Qxe1 {[%clk 0:00:43]}  Qd3 {[%clk 0:00:54]} 27. cxb7 {[%clk 0:00:39]}  Rb8 {[%clk 0:00:53]} 28. Be2 {[%clk 0:00:38]}  Qe4 {[%clk 0:00:51]} 29. Bxa6 {[%clk 0:00:37]}  Qxd5 {[%clk 0:00:50]} 30. Rc1 {[%clk 0:00:34]}  Be5 {[%clk 0:00:30]} 31. Rc8+ {[%clk 0:00:34]}  Kg7 {[%clk 0:00:31]} 32. Rxb8 {[%clk 0:00:34]}  d3 {[%clk 0:00:31]} 33. Bxd3 {[%clk 0:00:32]}  Qxd3 {[%clk 0:00:30]} 34. Rc8 {[%clk 0:00:28]} 1-0


[Site "https://www.chess.com"]

[Event "Titled Tuesday Blitz March 07 Late 2023"]
[White "mohsengabr2002"]
[Black "Liu, Eric"]
[BlackFideId "30960240"]
[WhiteElo "2319"]
[BlackElo "2094"]
[Result "1-0"]
[Round "07"]
[TimeControl "180+2"]
[Date "2023.03.07"]
[WhiteClock "0:00:03"]
[BlackClock "0:00:01"]

1. b3 {[%clk 0:03:00]}  b6 {[%clk 0:02:58]} 2. a4 {[%clk 0:03:00]}  Bb7 {[%clk 0:02:59]} 3. a5 {[%clk 0:02:59]}  h5 {[%clk 0:02:57]} 4. Bb2 {[%clk 0:02:59]}  h4 {[%clk 0:02:57]} 5. h3 {[%clk 0:02:57]}  Nf6 {[%clk 0:02:57]} 6. e3 {[%clk 0:02:57]}  e6 {[%clk 0:02:53]} 7. a6 {[%clk 0:02:57]}  Bc8 {[%clk 0:02:54]} 8. Nf3 {[%clk 0:02:56]}  d5 {[%clk 0:02:54]} 9. Nc3 {[%clk 0:02:45]}  Be7 {[%clk 0:02:51]} 10. Ne5 {[%clk 0:02:44]}  Nfd7 {[%clk 0:02:47]} 11. Nxd7 {[%clk 0:02:39]}  Bxd7 {[%clk 0:02:48]} 12. Be2 {[%clk 0:02:29]}  O-O {[%clk 0:02:47]} 13. O-O {[%clk 0:02:27]}  c5 {[%clk 0:02:47]} 14. Bf3 {[%clk 0:02:20]}  Nc6 {[%clk 0:02:47]} 15. d4 {[%clk 0:02:06]}  cxd4 {[%clk 0:02:46]} 16. exd4 {[%clk 0:02:06]}  Rc8 {[%clk 0:02:46]} 17. Ne2 {[%clk 0:02:00]}  Bd6 {[%clk 0:02:46]} 18. c4 {[%clk 0:01:57]}  Bb8 {[%clk 0:02:38]} 19. cxd5 {[%clk 0:01:55]}  Qc7 {[%clk 0:02:38]} 20. Re1 {[%clk 0:01:45]}  exd5 {[%clk 0:02:36]} 21. Bxd5 {[%clk 0:01:39]}  Qh2+ {[%clk 0:02:35]} 22. Kf1 {[%clk 0:01:39]}  Rfe8 {[%clk 0:02:21]} 23. Ng1 {[%clk 0:01:37]}  Rxe1+ {[%clk 0:02:09]} 24. Qxe1 {[%clk 0:01:34]}  Re8 {[%clk 0:02:09]} 25. Qd2 {[%clk 0:01:29]}  Qh1 {[%clk 0:02:09]} 26. f4 {[%clk 0:01:19]}  Ne7 {[%clk 0:01:59]} 27. Bf3 {[%clk 0:01:18]}  Nf5 {[%clk 0:01:59]} 28. Kf2 {[%clk 0:01:01]}  g5 {[%clk 0:01:48]} 29. Ne2 {[%clk 0:00:53]}  Qh2 {[%clk 0:01:48]} 30. d5 {[%clk 0:00:26]}  Rxe2+ {[%clk 0:01:26]} 31. Kxe2 {[%clk 0:00:20]}  Ng3+ {[%clk 0:01:24]} 32. Kd1 {[%clk 0:00:20]}  Bxf4 {[%clk 0:01:07]} 33. Qd4 {[%clk 0:00:20]}  Qh1+ {[%clk 0:01:02]} 34. Kc2 {[%clk 0:00:18]}  Bf5+ {[%clk 0:01:02]} 35. Kc3 {[%clk 0:00:17]}  Qh2 {[%clk 0:00:19]} 36. Kc4 {[%clk 0:00:17]}  b5+ {[%clk 0:00:18]} 37. Kxb5 {[%clk 0:00:15]}  Bd7+ {[%clk 0:00:18]} 38. Kc5 {[%clk 0:00:14]}  Bd6+ {[%clk 0:00:16]} 39. Kc4 {[%clk 0:00:11]}  Kf8 {[%clk 0:00:13]} 40. Re1 {[%clk 0:00:08]}  Be6 {[%clk 0:00:07]} 41. dxe6 {[%clk 0:00:06]}  Nf5 {[%clk 0:00:06]} 42. Qh8+ {[%clk 0:00:04]}  Ke7 {[%clk 0:00:06]} 43. exf7+ {[%clk 0:00:04]}  Kd7 {[%clk 0:00:04]} 44. Qe8+ {[%clk 0:00:03]}  Kc7 {[%clk 0:00:04]} 45. Qc6+ {[%clk 0:00:03]}  Kd8 {[%clk 0:00:01]} 46. Re8# {[%clk 0:00:03]} 1-0


[Site "https://www.chess.com"]

[Event "Titled Tuesday Blitz March 07 Late 2023"]
[White "Szente Varga, Fruzsina"]
[Black "Romkachess"]
[WhiteFideId "712264"]
[WhiteElo "1994"]
[BlackElo "2486"]
[Result "1-0"]
[Round "07"]
[TimeControl "180+2"]
[Date "2023.03.07"]
[WhiteClock "0:00:49"]
[BlackClock "0:00:02"]

1. e4 {[%clk 0:03:00]}  c5 {[%clk 0:02:48]} 2. Nf3 {[%clk 0:03:01]}  d6 {[%clk 0:02:48]} 3. d4 {[%clk 0:03:01]}  cxd4 {[%clk 0:02:49]} 4. Qxd4 {[%clk 0:03:01]}  Nf6 {[%clk 0:02:50]} 5. Bb5+ {[%clk 0:03:00]}  Bd7 {[%clk 0:02:50]} 6. Bxd7+ {[%clk 0:02:58]}  Qxd7 {[%clk 0:02:50]} 7. c4 {[%clk 0:02:58]}  Nc6 {[%clk 0:02:51]} 8. Qd3 {[%clk 0:02:56]}  g6 {[%clk 0:02:50]} 9. O-O {[%clk 0:02:55]}  Bg7 {[%clk 0:02:50]} 10. Nc3 {[%clk 0:02:54]}  O-O {[%clk 0:02:50]} 11. h3 {[%clk 0:02:51]}  Rac8 {[%clk 0:02:49]} 12. Be3 {[%clk 0:02:47]}  Nb4 {[%clk 0:02:43]} 13. Qe2 {[%clk 0:02:46]}  Qe6 {[%clk 0:02:34]} 14. Nd2 {[%clk 0:02:41]}  Nc2 {[%clk 0:02:30]} 15. Rac1 {[%clk 0:02:40]}  Nxe3 {[%clk 0:02:29]} 16. Qxe3 {[%clk 0:02:41]}  a6 {[%clk 0:02:19]} 17. b3 {[%clk 0:02:40]}  Qe5 {[%clk 0:02:13]} 18. f4 {[%clk 0:02:38]}  Qc5 {[%clk 0:02:14]} 19. Qxc5 {[%clk 0:02:34]}  Rxc5 {[%clk 0:02:14]} 20. Rfe1 {[%clk 0:02:31]}  Nh5 {[%clk 0:02:11]} 21. Nd5 {[%clk 0:02:22]}  e6 {[%clk 0:02:07]} 22. b4 {[%clk 0:02:14]}  Rcc8 {[%clk 0:01:15]} 23. Ne7+ {[%clk 0:02:14]}  Kh8 {[%clk 0:01:15]} 24. Nxc8 {[%clk 0:02:14]}  Rxc8 {[%clk 0:01:15]} 25. f5 {[%clk 0:02:11]}  Bd4+ {[%clk 0:01:10]} 26. Kh2 {[%clk 0:02:09]}  Be5+ {[%clk 0:01:09]} 27. Kh1 {[%clk 0:01:59]}  gxf5 {[%clk 0:00:45]} 28. exf5 {[%clk 0:01:53]}  Ng3+ {[%clk 0:00:44]} 29. Kg1 {[%clk 0:01:52]}  Nxf5 {[%clk 0:00:42]} 30. Nf3 {[%clk 0:01:51]}  Bf4 {[%clk 0:00:37]} 31. Rc3 {[%clk 0:01:38]}  Bg3 {[%clk 0:00:23]} 32. Rd1 {[%clk 0:01:32]}  h6 {[%clk 0:00:23]} 33. Nd4 {[%clk 0:01:28]}  Nxd4 {[%clk 0:00:23]} 34. Rxd4 {[%clk 0:01:26]}  Be5 {[%clk 0:00:23]} 35. Rcd3 {[%clk 0:01:26]}  Bxd4+ {[%clk 0:00:23]} 36. Rxd4 {[%clk 0:01:27]}  Rc6 {[%clk 0:00:23]} 37. Kf2 {[%clk 0:01:26]}  Kg7 {[%clk 0:00:23]} 38. Kf3 {[%clk 0:01:26]}  Kf6 {[%clk 0:00:23]} 39. Ke4 {[%clk 0:01:26]}  b5 {[%clk 0:00:21]} 40. cxb5 {[%clk 0:01:26]}  axb5 {[%clk 0:00:22]} 41. Kd3 {[%clk 0:01:23]}  Ra6 {[%clk 0:00:22]} 42. Rh4 {[%clk 0:01:21]}  Ra3+ {[%clk 0:00:18]} 43. Kd4 {[%clk 0:01:17]}  Kg5 {[%clk 0:00:13]} 44. Rg4+ {[%clk 0:01:16]}  Kf5 {[%clk 0:00:12]} 45. Rh4 {[%clk 0:01:14]}  Kg6 {[%clk 0:00:10]} 46. Rg4+ {[%clk 0:01:14]}  Kh7 {[%clk 0:00:10]} 47. Rh4 {[%clk 0:01:03]}  Rxa2 {[%clk 0:00:09]} 48. Rh5 {[%clk 0:01:03]}  Rd2+ {[%clk 0:00:06]} 49. Kc3 {[%clk 0:01:01]}  Rxg2 {[%clk 0:00:04]} 50. Rxb5 {[%clk 0:01:01]}  Rg3+ {[%clk 0:00:04]} 51. Kd4 {[%clk 0:01:02]}  Rxh3 {[%clk 0:00:05]} 52. Rb7 {[%clk 0:01:02]}  Kg6 {[%clk 0:00:05]} 53. b5 {[%clk 0:01:01]}  Rb3 {[%clk 0:00:05]} 54. Kc4 {[%clk 0:01:01]}  Rb1 {[%clk 0:00:06]} 55. Rd7 {[%clk 0:00:59]}  d5+ {[%clk 0:00:05]} 56. Kc5 {[%clk 0:00:59]}  f6 {[%clk 0:00:05]} 57. b6 {[%clk 0:00:59]}  Kf5 {[%clk 0:00:04]} 58. b7 {[%clk 0:00:59]}  Rc1+ {[%clk 0:00:04]} 59. Kb6 {[%clk 0:00:55]}  Rb1+ {[%clk 0:00:05]} 60. Ka7 {[%clk 0:00:53]}  Ke4 {[%clk 0:00:04]} 61. b8=Q {[%clk 0:00:53]}  Rxb8 {[%clk 0:00:04]} 62. Kxb8 {[%clk 0:00:54]}  d4 {[%clk 0:00:03]} 63. Kc7 {[%clk 0:00:52]}  e5 {[%clk 0:00:03]} 64. Kc6 {[%clk 0:00:53]}  Ke3 {[%clk 0:00:03]} 65. Kc5 {[%clk 0:00:53]}  d3 {[%clk 0:00:01]} 66. Kc4 {[%clk 0:00:53]}  e4 {[%clk 0:00:01]} 67. Kc3 {[%clk 0:00:54]}  f5 {[%clk 0:00:02]} 68. Rh7 {[%clk 0:00:49]} 1-0


[Site "https://www.chess.com"]

[Event "Titled Tuesday Blitz March 07 Late 2023"]
[White "Balague Camps, Marc"]
[Black "Estrada Nieto, Julian"]
[WhiteFideId "2297914"]
[BlackFideId "5101018"]
[WhiteElo "2089"]
[BlackElo "2176"]
[Result "1-0"]
[Round "07"]
[TimeControl "180+2"]
[Date "2023.03.07"]
[WhiteClock "0:01:12"]
[BlackClock "0:00:03"]

1. d4 {[%clk 0:02:56]}  d5 {[%clk 0:02:59]} 2. c4 {[%clk 0:02:56]}  dxc4 {[%clk 0:02:59]} 3. e3 {[%clk 0:02:56]}  Nf6 {[%clk 0:02:59]} 4. Bxc4 {[%clk 0:02:57]}  e6 {[%clk 0:03:00]} 5. Nf3 {[%clk 0:02:57]}  c5 {[%clk 0:03:01]} 6. O-O {[%clk 0:02:58]}  a6 {[%clk 0:03:02]} 7. b3 {[%clk 0:02:56]}  Nc6 {[%clk 0:03:01]} 8. Bb2 {[%clk 0:02:54]}  cxd4 {[%clk 0:03:02]} 9. Nxd4 {[%clk 0:02:52]}  Bd7 {[%clk 0:03:01]} 10. Nc3 {[%clk 0:02:50]}  Nxd4 {[%clk 0:03:00]} 11. Qxd4 {[%clk 0:02:49]}  Bc6 {[%clk 0:02:59]} 12. Qxd8+ {[%clk 0:02:46]}  Rxd8 {[%clk 0:02:59]} 13. Rad1 {[%clk 0:02:46]}  Be7 {[%clk 0:02:57]} 14. Rxd8+ {[%clk 0:02:46]}  Kxd8 {[%clk 0:02:52]} 15. Rd1+ {[%clk 0:02:46]}  Kc8 {[%clk 0:02:53]} 16. f3 {[%clk 0:02:46]}  b5 {[%clk 0:02:38]} 17. Be2 {[%clk 0:02:46]}  Bc5 {[%clk 0:02:38]} 18. Kf2 {[%clk 0:02:44]}  Kb7 {[%clk 0:02:32]} 19. Nb1 {[%clk 0:02:43]}  Nd5 {[%clk 0:02:24]} 20. Bd4 {[%clk 0:02:42]}  Bxd4 {[%clk 0:02:24]} 21. Rxd4 {[%clk 0:02:41]}  e5 {[%clk 0:02:12]} 22. Rd2 {[%clk 0:02:33]}  f5 {[%clk 0:02:12]} 23. a4 {[%clk 0:02:24]}  Kb6 {[%clk 0:01:45]} 24. axb5 {[%clk 0:02:23]}  axb5 {[%clk 0:01:45]} 25. Na3 {[%clk 0:02:19]}  Nc3 {[%clk 0:01:34]} 26. Rc2 {[%clk 0:02:10]}  Nxe2 {[%clk 0:01:31]} 27. Kxe2 {[%clk 0:02:08]}  Ra8 {[%clk 0:01:29]} 28. Nb1 {[%clk 0:02:06]}  b4 {[%clk 0:01:14]} 29. Kf2 {[%clk 0:02:00]}  Bb5 {[%clk 0:01:09]} 30. Nd2 {[%clk 0:01:52]}  Ra3 {[%clk 0:01:04]} 31. f4 {[%clk 0:01:49]}  e4 {[%clk 0:01:01]} 32. g4 {[%clk 0:01:48]}  Bd3 {[%clk 0:00:56]} 33. Nc4+ {[%clk 0:01:32]}  Bxc4 {[%clk 0:00:55]} 34. Rxc4 {[%clk 0:01:32]}  Rxb3 {[%clk 0:00:55]} 35. gxf5 {[%clk 0:01:32]}  Kb5 {[%clk 0:00:38]} 36. Rxe4 {[%clk 0:01:32]}  Rb2+ {[%clk 0:00:38]} 37. Kg3 {[%clk 0:01:31]}  b3 {[%clk 0:00:37]} 38. Re7 {[%clk 0:01:32]}  Re2 {[%clk 0:00:32]} 39. Kf3 {[%clk 0:01:30]}  Rxh2 {[%clk 0:00:26]} 40. Rxg7 {[%clk 0:01:27]}  Kc4 {[%clk 0:00:19]} 41. f6 {[%clk 0:01:27]}  Rh6 {[%clk 0:00:17]} 42. f7 {[%clk 0:01:19]}  Rf6 {[%clk 0:00:17]} 43. Rxh7 {[%clk 0:01:20]}  b2 {[%clk 0:00:17]} 44. Rh1 {[%clk 0:01:19]}  Rxf7 {[%clk 0:00:17]} 45. e4 {[%clk 0:01:19]}  Kc3 {[%clk 0:00:17]} 46. e5 {[%clk 0:01:20]}  Rh7 {[%clk 0:00:13]} 47. Re1 {[%clk 0:01:16]}  Kd2 {[%clk 0:00:11]} 48. Re2+ {[%clk 0:01:16]}  Kc3 {[%clk 0:00:11]} 49. Re1 {[%clk 0:01:15]}  Kd2 {[%clk 0:00:10]} 50. Re2+ {[%clk 0:01:16]}  Kc3 {[%clk 0:00:10]} 51. Rxb2 {[%clk 0:01:15]}  Kxb2 {[%clk 0:00:10]} 52. Ke4 {[%clk 0:01:16]}  Kc3 {[%clk 0:00:10]} 53. Kd5 {[%clk 0:01:16]}  Kd3 {[%clk 0:00:09]} 54. f5 {[%clk 0:01:17]}  Ke3 {[%clk 0:00:08]} 55. f6 {[%clk 0:01:17]}  Kf4 {[%clk 0:00:07]} 56. e6 {[%clk 0:01:18]}  Kf5 {[%clk 0:00:06]} 57. f7 {[%clk 0:01:14]}  Rh8 {[%clk 0:00:07]} 58. e7 {[%clk 0:01:14]}  Kf6 {[%clk 0:00:03]} 59. f8=Q+ {[%clk 0:01:12]} 1-0


[Site "https://www.chess.com"]

[Event "Titled Tuesday Blitz March 07 Late 2023"]
[White "Becerra, Juan David"]
[Black "Needleman, Gaston"]
[WhiteFideId "4404998"]
[BlackFideId "113735"]
[WhiteElo "2282"]
[BlackElo "2339"]
[Result "1/2-1/2"]
[Round "07"]
[TimeControl "180+2"]
[Date "2023.03.07"]
[WhiteClock "0:00:08"]
[BlackClock "0:00:09"]

1. e4 {[%clk 0:03:00]}  e6 {[%clk 0:01:34]} 2. d4 {[%clk 0:02:57]}  d5 {[%clk 0:01:33]} 3. exd5 {[%clk 0:02:58]}  exd5 {[%clk 0:01:32]} 4. c4 {[%clk 0:02:58]}  c6 {[%clk 0:01:32]} 5. Nf3 {[%clk 0:02:56]}  Nf6 {[%clk 0:01:31]} 6. Nc3 {[%clk 0:02:53]}  Bb4 {[%clk 0:01:29]} 7. Bd3 {[%clk 0:02:47]}  O-O {[%clk 0:01:27]} 8. O-O {[%clk 0:02:45]}  Bg4 {[%clk 0:01:25]} 9. Be3 {[%clk 0:02:45]}  Nbd7 {[%clk 0:01:20]} 10. a3 {[%clk 0:02:27]}  Bxc3 {[%clk 0:01:19]} 11. bxc3 {[%clk 0:02:28]}  dxc4 {[%clk 0:01:17]} 12. Bxc4 {[%clk 0:02:27]}  Nb6 {[%clk 0:01:17]} 13. Be2 {[%clk 0:02:26]}  Nbd5 {[%clk 0:01:16]} 14. Bd2 {[%clk 0:02:26]}  Ne4 {[%clk 0:01:15]} 15. Qc2 {[%clk 0:02:21]}  Nxd2 {[%clk 0:01:14]} 16. Qxd2 {[%clk 0:02:21]}  Qd6 {[%clk 0:01:11]} 17. h3 {[%clk 0:02:11]}  Bxf3 {[%clk 0:01:10]} 18. Bxf3 {[%clk 0:02:10]}  Nf4 {[%clk 0:01:09]} 19. Rfe1 {[%clk 0:02:06]}  Qh6 {[%clk 0:01:07]} 20. Rad1 {[%clk 0:01:57]}  Rfe8 {[%clk 0:01:04]} 21. Kh2 {[%clk 0:01:52]}  g5 {[%clk 0:01:02]} 22. Rxe8+ {[%clk 0:01:47]}  Rxe8 {[%clk 0:01:00]} 23. Re1 {[%clk 0:01:48]}  Re6 {[%clk 0:00:59]} 24. c4 {[%clk 0:01:40]}  Rf6 {[%clk 0:00:53]} 25. Re8+ {[%clk 0:01:36]}  Kg7 {[%clk 0:00:53]} 26. d5 {[%clk 0:01:33]}  Nxh3 {[%clk 0:00:49]} 27. Qb4 {[%clk 0:01:06]}  Nxf2+ {[%clk 0:00:30]} 28. Kg1 {[%clk 0:01:05]}  g4 {[%clk 0:00:28]} 29. Qf8+ {[%clk 0:00:29]}  Kg6 {[%clk 0:00:28]} 30. Qxh6+ {[%clk 0:00:20]}  Kxh6 {[%clk 0:00:28]} 31. dxc6 {[%clk 0:00:20]}  bxc6 {[%clk 0:00:26]} 32. Be2 {[%clk 0:00:17]}  g3 {[%clk 0:00:24]} 33. Re3 {[%clk 0:00:15]}  Rg6 {[%clk 0:00:23]} 34. Bf3 {[%clk 0:00:15]}  Kg7 {[%clk 0:00:22]} 35. Re5 {[%clk 0:00:11]}  Rh6 {[%clk 0:00:22]} 36. Rg5+ {[%clk 0:00:11]}  Kf6 {[%clk 0:00:21]} 37. Rxg3 {[%clk 0:00:11]}  Nd3 {[%clk 0:00:19]} 38. Bxc6 {[%clk 0:00:11]}  Ne5 {[%clk 0:00:20]} 39. Bd5 {[%clk 0:00:11]}  Rh4 {[%clk 0:00:20]} 40. Rc3 {[%clk 0:00:10]}  Rd4 {[%clk 0:00:20]} 41. Rc1 {[%clk 0:00:11]}  Rd2 {[%clk 0:00:19]} 42. Kh2 {[%clk 0:00:08]}  Kg5 {[%clk 0:00:19]} 43. Kh3 {[%clk 0:00:08]}  Ng4 {[%clk 0:00:19]} 44. Kg3 {[%clk 0:00:07]}  f5 {[%clk 0:00:15]} 45. Bf3 {[%clk 0:00:07]}  f4+ {[%clk 0:00:13]} 46. Kh3 {[%clk 0:00:07]}  Rd6 {[%clk 0:00:11]} 47. g3 {[%clk 0:00:06]}  Rh6+ {[%clk 0:00:09]} 48. Kg2 {[%clk 0:00:06]}  Ne3+ {[%clk 0:00:09]} 49. Kg1 {[%clk 0:00:07]}  fxg3 {[%clk 0:00:08]} 50. c5 {[%clk 0:00:08]}  Kf4 {[%clk 0:00:08]} 51. c6 {[%clk 0:00:07]}  Kxf3 {[%clk 0:00:08]} 52. c7 {[%clk 0:00:07]}  Rh2 {[%clk 0:00:07]} 53. c8=Q {[%clk 0:00:07]}  Rg2+ {[%clk 0:00:07]} 54. Kh1 {[%clk 0:00:07]}  Rh2+ {[%clk 0:00:07]} 55. Kg1 {[%clk 0:00:07]}  Rg2+ {[%clk 0:00:08]} 56. Kh1 {[%clk 0:00:07]}  Rh2+ {[%clk 0:00:09]} 57. Kg1 {[%clk 0:00:08]} 1/2-1/2


[Site "https://www.chess.com"]

[Event "Titled Tuesday Blitz March 07 Late 2023"]
[White "Paspuel, Trosky"]
[Black "Mazurkiewicz, Michal"]
[WhiteFideId "3602150"]
[BlackFideId "1124943"]
[WhiteElo "2331"]
[BlackElo "2054"]
[Result "0-1"]
[Round "07"]
[TimeControl "180+2"]
[Date "2023.03.07"]
[WhiteClock "0:00:08"]
[BlackClock "0:01:57"]

1. c4 {[%clk 0:03:00]}  Nf6 {[%clk 0:02:58]} 2. Nc3 {[%clk 0:03:00]}  g6 {[%clk 0:02:58]} 3. e4 {[%clk 0:03:00]}  d6 {[%clk 0:02:58]} 4. d4 {[%clk 0:03:00]}  Bg7 {[%clk 0:02:59]} 5. Be2 {[%clk 0:03:00]}  O-O {[%clk 0:03:00]} 6. Bg5 {[%clk 0:03:01]}  c5 {[%clk 0:02:57]} 7. d5 {[%clk 0:03:01]}  h6 {[%clk 0:02:57]} 8. Be3 {[%clk 0:03:01]}  e6 {[%clk 0:02:56]} 9. Qd2 {[%clk 0:02:41]}  exd5 {[%clk 0:02:56]} 10. exd5 {[%clk 0:02:39]}  Kh7 {[%clk 0:02:56]} 11. h4 {[%clk 0:02:34]}  Ng4 {[%clk 0:02:47]} 12. Bxg4 {[%clk 0:02:31]}  Bxg4 {[%clk 0:02:48]} 13. f3 {[%clk 0:02:30]}  Bc8 {[%clk 0:02:39]} 14. h5 {[%clk 0:02:23]}  g5 {[%clk 0:02:36]} 15. g4 {[%clk 0:02:21]}  Nd7 {[%clk 0:02:34]} 16. Nh3 {[%clk 0:02:20]}  Ne5 {[%clk 0:02:34]} 17. O-O {[%clk 0:01:57]}  f5 {[%clk 0:02:33]} 18. Nxg5+ {[%clk 0:00:32]}  hxg5 {[%clk 0:02:31]} 19. Bxg5 {[%clk 0:00:33]}  Bf6 {[%clk 0:02:31]} 20. Bf4 {[%clk 0:00:25]}  Rg8 {[%clk 0:02:30]} 21. Kf2 {[%clk 0:00:24]}  fxg4 {[%clk 0:02:28]} 22. Qc2+ {[%clk 0:00:24]}  Kh8 {[%clk 0:02:26]} 23. Bxe5 {[%clk 0:00:23]}  Bxe5 {[%clk 0:02:22]} 24. Ne4 {[%clk 0:00:23]}  gxf3 {[%clk 0:02:12]} 25. Rg1 {[%clk 0:00:15]}  Bd4+ {[%clk 0:01:57]} 26. Kxf3 {[%clk 0:00:08]} 0-1


[Site "https://www.chess.com"]

[Event "Titled Tuesday Blitz March 07 Late 2023"]
[White "Delgado Rosas, Fatima Alexandra"]
[Black "Dzida, Kamil"]
[WhiteFideId "6603963"]
[BlackFideId "21828652"]
[WhiteElo "2322"]
[BlackElo "2139"]
[Result "0-1"]
[Round "07"]
[TimeControl "180+2"]
[Date "2023.03.07"]
[WhiteClock "0:01:39"]
[BlackClock "0:00:46"]

1. d4 {[%clk 0:03:00]}  Nf6 {[%clk 0:02:59]} 2. c4 {[%clk 0:03:01]}  g6 {[%clk 0:03:00]} 3. Nc3 {[%clk 0:03:01]}  d5 {[%clk 0:03:00]} 4. Nf3 {[%clk 0:03:01]}  Bg7 {[%clk 0:03:00]} 5. e3 {[%clk 0:03:02]}  O-O {[%clk 0:03:00]} 6. cxd5 {[%clk 0:03:02]}  Nxd5 {[%clk 0:03:00]} 7. Bc4 {[%clk 0:03:02]}  e6 {[%clk 0:02:54]} 8. O-O {[%clk 0:03:02]}  c5 {[%clk 0:02:48]} 9. Qe2 {[%clk 0:02:59]}  cxd4 {[%clk 0:02:44]} 10. exd4 {[%clk 0:03:00]}  Nc6 {[%clk 0:02:43]} 11. Rd1 {[%clk 0:02:59]}  b6 {[%clk 0:02:33]} 12. Be3 {[%clk 0:02:59]}  Bb7 {[%clk 0:02:33]} 13. Rac1 {[%clk 0:03:00]}  Nce7 {[%clk 0:02:32]} 14. a3 {[%clk 0:03:00]}  Rc8 {[%clk 0:02:32]} 15. Ne5 {[%clk 0:02:58]}  Qd6 {[%clk 0:01:53]} 16. Ne4 {[%clk 0:02:53]}  Qd8 {[%clk 0:01:43]} 17. f3 {[%clk 0:02:25]}  Nf5 {[%clk 0:01:30]} 18. Bf2 {[%clk 0:02:22]}  Rc7 {[%clk 0:01:24]} 19. Bd3 {[%clk 0:02:19]}  Nf4 {[%clk 0:01:22]} 20. Qd2 {[%clk 0:02:17]}  Rxc1 {[%clk 0:01:10]} 21. Rxc1 {[%clk 0:02:16]}  Nxd3 {[%clk 0:01:10]} 22. Qxd3 {[%clk 0:02:16]}  Bxe5 {[%clk 0:01:11]} 23. g4 {[%clk 0:01:57]}  Nxd4 {[%clk 0:01:01]} 24. g5 {[%clk 0:01:50]}  Bxe4 {[%clk 0:00:56]} 25. Qxe4 {[%clk 0:01:49]}  Qd5 {[%clk 0:00:55]} 26. Qxd5 {[%clk 0:01:45]}  exd5 {[%clk 0:00:56]} 27. Kg2 {[%clk 0:01:43]}  Ne2 {[%clk 0:00:53]} 28. Rd1 {[%clk 0:01:42]}  d4 {[%clk 0:00:52]} 29. Kf1 {[%clk 0:01:41]}  Nf4 {[%clk 0:00:47]} 30. Bxd4 {[%clk 0:01:42]}  Rd8 {[%clk 0:00:47]} 31. Bxe5 {[%clk 0:01:39]}  Rxd1+ {[%clk 0:00:46]} 0-1


[Site "https://www.chess.com"]

[Event "Titled Tuesday Blitz March 07 Late 2023"]
[White "Pesotskiy, Mikhail"]
[Black "Miszler, Levente"]
[WhiteFideId "34164453"]
[BlackFideId "763276"]
[WhiteElo "2131"]
[BlackElo "2176"]
[Result "1-0"]
[Round "07"]
[TimeControl "180+2"]
[Date "2023.03.07"]
[WhiteClock "0:01:26"]
[BlackClock "0:01:04"]

1. d4 {[%clk 0:02:59]}  d5 {[%clk 0:02:57]} 2. c4 {[%clk 0:02:59]}  c6 {[%clk 0:02:57]} 3. Nf3 {[%clk 0:02:59]}  Nf6 {[%clk 0:02:56]} 4. Nbd2 {[%clk 0:03:00]}  e6 {[%clk 0:02:56]} 5. e3 {[%clk 0:02:59]}  Bd6 {[%clk 0:02:55]} 6. b3 {[%clk 0:03:00]}  O-O {[%clk 0:02:56]} 7. Bb2 {[%clk 0:02:59]}  Nbd7 {[%clk 0:02:56]} 8. Bd3 {[%clk 0:03:00]}  Qc7 {[%clk 0:02:56]} 9. Rc1 {[%clk 0:02:59]}  dxc4 {[%clk 0:02:52]} 10. Nxc4 {[%clk 0:02:57]}  Bb4+ {[%clk 0:02:52]} 11. Bc3 {[%clk 0:02:57]}  Bxc3+ {[%clk 0:02:52]} 12. Rxc3 {[%clk 0:02:58]}  Nd5 {[%clk 0:02:51]} 13. Rc1 {[%clk 0:02:56]}  a5 {[%clk 0:02:46]} 14. Qd2 {[%clk 0:02:53]}  a4 {[%clk 0:02:45]} 15. b4 {[%clk 0:02:52]}  N7b6 {[%clk 0:02:44]} 16. a3 {[%clk 0:02:43]}  Nxc4 {[%clk 0:02:41]} 17. Bxc4 {[%clk 0:02:44]}  Qd6 {[%clk 0:02:34]} 18. O-O {[%clk 0:02:43]}  Nf6 {[%clk 0:02:27]} 19. Bd3 {[%clk 0:02:38]}  Nd7 {[%clk 0:02:25]} 20. Qc3 {[%clk 0:02:32]}  Re8 {[%clk 0:02:18]} 21. Rfd1 {[%clk 0:02:28]}  Qe7 {[%clk 0:02:16]} 22. b5 {[%clk 0:02:19]}  cxb5 {[%clk 0:02:12]} 23. Bxb5 {[%clk 0:02:20]}  g6 {[%clk 0:02:11]} 24. Qc7 {[%clk 0:02:18]}  Kg7 {[%clk 0:02:05]} 25. Ne5 {[%clk 0:01:54]}  Rd8 {[%clk 0:01:55]} 26. d5 {[%clk 0:01:32]}  exd5 {[%clk 0:01:04]} 27. Rxd5 {[%clk 0:01:33]}  Qxa3 {[%clk 0:01:04]} 28. Rcd1 {[%clk 0:01:26]} 1-0


[Site "https://www.chess.com"]